[Event "*** Titled Tuesday 3|2 Blitz"]
[Site "Chess.com"]
[Date "2016.09.06"]
[Round "3"]
[White "putinwarrior"]
[Black "Amethystical"]
[Result "1-0"]
[WhiteElo "2352"]
[BlackElo "2529"]
[TimeControl "180+2"]
[EndTime "17:33:09 PDT"]
[Termination "putinwarrior won by resignation"]

1. d4 {[%clk 0:03:01.9]} 1... Nf6 {[%clk 0:03:00.6]} 2. Bg5 {[%clk 0:03:03.4]}
2... d5 {[%clk 0:03:01.4]} 3. e3 {[%clk 0:03:04.2]} 3... c5 {[%clk 0:03:01]} 4.
Bd3 {[%clk 0:03:04.5]} 4... Nc6 {[%clk 0:02:57.3]} 5. c3 {[%clk 0:03:05]} 5...
Bg4 {[%clk 0:02:52.4]} 6. Nf3 {[%clk 0:03:04.1]} 6... e6 {[%clk 0:02:52.3]} 7.
Nbd2 {[%clk 0:03:05.3]} 7... Be7 {[%clk 0:02:52]} 8. Qa4 {[%clk 0:02:57]} 8...
O-O {[%clk 0:02:48.4]} 9. Ne5 {[%clk 0:02:57.2]} 9... c4 {[%clk 0:02:21.4]} 10.
Bxf6 {[%clk 0:02:30.7]} 10... Nxe5 {[%clk 0:01:57.7]} 11. Bxh7+ {[%clk
0:01:58.2]} 11... Kxh7 {[%clk 0:01:56.8]} 12. Bxe5 {[%clk 0:02:00.1]} 12... f6
{[%clk 0:01:41.6]} 13. Bg3 {[%clk 0:01:58.7]} 13... a6 {[%clk 0:01:40.5]} 14. f3
{[%clk 0:01:57.7]} 14... Bf5 {[%clk 0:01:40.9]} 15. e4 {[%clk 0:01:58.5]} 15...
Bg6 {[%clk 0:01:39.8]} 16. O-O {[%clk 0:01:55.4]} 16... b5 {[%clk 0:01:40.7]}
17. Qc2 {[%clk 0:01:56.3]} 17... b4 {[%clk 0:01:41.8]} 18. a3 {[%clk 0:01:57]}
18... b3 {[%clk 0:01:24.5]} 19. Qd1 {[%clk 0:01:53.2]} 19... Bd6 {[%clk
0:01:18.6]} 20. Qe1 {[%clk 0:01:41.2]} 20... Qc7 {[%clk 0:01:12.7]} 21. Bxd6
{[%clk 0:01:32.6]} 21... Qxd6 {[%clk 0:01:13.8]} 22. Qh4+ {[%clk 0:01:34.4]}
22... Kg8 {[%clk 0:01:14.5]} 23. Rae1 {[%clk 0:01:33.6]} 23... Rae8 {[%clk
0:01:13.2]} 24. e5 {[%clk 0:01:25]} 24... Qd7 {[%clk 0:01:14.2]} 25. f4 {[%clk
0:01:20.9]} 25... fxe5 {[%clk 0:00:59.9]} 26. Rxe5 {[%clk 0:01:19.7]} 26... Rf5
{[%clk 0:00:58.7]} 27. Rfe1 {[%clk 0:01:17.6]} 27... Qf7 {[%clk 0:00:53.7]} 28.
g3 {[%clk 0:01:10.4]} 28... Rxe5 {[%clk 0:00:37.1]} 29. Rxe5 {[%clk 0:01:08.7]}
29... Qf6 {[%clk 0:00:37.5]} 30. Nf3 {[%clk 0:01:04.6]} 30... Qxh4 {[%clk
0:00:32.8]} 31. Nxh4 {[%clk 0:01:04]} 31... Bd3 {[%clk 0:00:34.3]} 32. f5 {[%clk
0:00:59.7]} 32... Kf7 {[%clk 0:00:35.6]} 33. fxe6+ {[%clk 0:00:58.9]} 33... Rxe6
{[%clk 0:00:36.9]} 34. Rxe6 {[%clk 0:00:59.1]} 34... Kxe6 {[%clk 0:00:38.8]} 35.
Kf2 {[%clk 0:00:58.8]} 35... Be4 {[%clk 0:00:37.9]} 36. Ke3 {[%clk 0:00:58.8]}
36... Kf6 {[%clk 0:00:33.6]} 37. Nf3 {[%clk 0:00:57.6]} 37... Kf5 {[%clk
0:00:31.5]} 38. Ne5 {[%clk 0:00:58.4]} 38... Bg2 {[%clk 0:00:29.4]} 39. h4
{[%clk 0:00:53]} 39... Bh3 {[%clk 0:00:26.2]} 40. Nd7 {[%clk 0:00:50.6]} 40...
Kg4 {[%clk 0:00:21.6]} 41. Kf2 {[%clk 0:00:51.2]} 41... Kf5 {[%clk 0:00:23.2]}
42. Nc5 {[%clk 0:00:51.4]} 42... Bg4 {[%clk 0:00:23.3]} 43. Ke3 {[%clk
0:00:47.8]} 43... a5 {[%clk 0:00:24.9]} 44. Nb7 {[%clk 0:00:49]} 44... a4 {[%clk
0:00:26.4]} 45. Nc5 {[%clk 0:00:50.3]} 45... Bh3 {[%clk 0:00:12.7]} 46. Nxa4
{[%clk 0:00:52.2]} 46... Kg4 {[%clk 0:00:14.1]} 47. Kf2 {[%clk 0:00:52.8]} 47...
Kf5 {[%clk 0:00:14.4]} 48. Nc5 {[%clk 0:00:53.2]} 48... Bg4 {[%clk 0:00:15.1]}
49. a4 {[%clk 0:00:54.4]} 1-0

[Event "*** Titled Tuesday 3|2 Blitz"]
[Site "Chess.com"]
[Date "2016.09.06"]
[Round "3"]
[White "spirals5"]
[Black "Viaje"]
[Result "1-0"]
[WhiteElo "2262"]
[BlackElo "2189"]
[TimeControl "180+2"]
[EndTime "17:33:42 PDT"]
[Termination "spirals5 won by resignation"]

1. e4 {[%clk 0:03:01.9]} 1... c5 {[%clk 0:03:00.9]} 2. Nc3 {[%clk 0:03:01.5]}
2... a6 {[%clk 0:03:01.4]} 3. g3 {[%clk 0:03:02.7]} 3... b5 {[%clk 0:03:02.7]}
4. Bg2 {[%clk 0:03:03.8]} 4... Bb7 {[%clk 0:03:04.2]} 5. d3 {[%clk 0:03:05.1]}
5... e6 {[%clk 0:03:05.7]} 6. f4 {[%clk 0:03:06.2]} 6... d5 {[%clk 0:03:03.8]}
7. exd5 {[%clk 0:03:06.9]} 7... b4 {[%clk 0:02:59.4]} 8. Ne4 {[%clk 0:03:05.8]}
8... exd5 {[%clk 0:02:52.3]} 9. Nf2 {[%clk 0:03:06.3]} 9... Nf6 {[%clk 0:02:52]}
10. Nf3 {[%clk 0:03:05.2]} 10... Be7 {[%clk 0:02:52.3]} 11. O-O {[%clk
0:03:05.4]} 11... d4 {[%clk 0:02:47.3]} 12. Re1 {[%clk 0:03:04.6]} 12... O-O
{[%clk 0:02:47.3]} 13. Ne4 {[%clk 0:03:05.3]} 13... Nbd7 {[%clk 0:02:46.3]} 14.
Bd2 {[%clk 0:03:04.8]} 14... Re8 {[%clk 0:02:43.8]} 15. Qe2 {[%clk 0:03:04.5]}
15... Bf8 {[%clk 0:02:40.8]} 16. Nxf6+ {[%clk 0:03:02.9]} 16... Nxf6 {[%clk
0:02:40.6]} 17. Qf1 {[%clk 0:03:01.6]} 17... Qc7 {[%clk 0:02:37.4]} 18. Rxe8
{[%clk 0:02:59.2]} 18... Rxe8 {[%clk 0:02:39.3]} 19. Re1 {[%clk 0:02:56.1]}
19... Qd8 {[%clk 0:02:31.3]} 20. Rxe8 {[%clk 0:02:53]} 20... Qxe8 {[%clk
0:02:33.2]} 21. Ne5 {[%clk 0:02:53.9]} 21... Bxg2 {[%clk 0:02:28.4]} 22. Qxg2
{[%clk 0:02:54.4]} 22... h6 {[%clk 0:02:26.1]} 23. Qb7 {[%clk 0:02:49.2]} 23...
Bd6 {[%clk 0:02:25.6]} 24. Qxa6 {[%clk 0:02:25.5]} 24... Bxe5 {[%clk 0:02:25.3]}
25. fxe5 {[%clk 0:02:26.6]} 25... Qxe5 {[%clk 0:02:26.1]} 26. Qa8+ {[%clk
0:02:26.1]} 26... Kh7 {[%clk 0:02:26.4]} 27. Qf3 {[%clk 0:02:26.8]} 27... h5
{[%clk 0:01:59.8]} 28. b3 {[%clk 0:02:21.4]} 28... Kg8 {[%clk 0:01:59.2]} 29. h3
{[%clk 0:02:07.8]} 29... g6 {[%clk 0:01:49.1]} 30. Kf2 {[%clk 0:02:06.2]} 30...
Kg7 {[%clk 0:01:43.3]} 31. Bf4 {[%clk 0:01:59.8]} 31... Qe6 {[%clk 0:01:41.9]}
32. Kg2 {[%clk 0:01:50.7]} 32... Nd5 {[%clk 0:01:25.8]} 33. Bd2 {[%clk
0:01:50.7]} 33... Nf6 {[%clk 0:01:11]} 34. Bg5 {[%clk 0:01:33.3]} 34... Nd5
{[%clk 0:01:09.7]} 35. Bd2 {[%clk 0:01:33.8]} 35... Nc3 {[%clk 0:01:02.2]} 36.
Bxc3 {[%clk 0:01:33.3]} 36... dxc3 {[%clk 0:01:04.1]} 37. Qe4 {[%clk 0:01:29]}
37... Qxe4+ {[%clk 0:00:58.8]} 38. dxe4 {[%clk 0:01:29.6]} 38... Kf6 {[%clk
0:01:00.3]} 39. Kf3 {[%clk 0:01:30.2]} 39... Ke5 {[%clk 0:00:59.9]} 40. Ke3
{[%clk 0:01:30.4]} 40... f6 {[%clk 0:00:46]} 41. h4 {[%clk 0:01:27.6]} 41... g5
{[%clk 0:00:46.1]} 42. g4 {[%clk 0:00:34.7]} 42... hxg4 {[%clk 0:00:39.4]} 43.
h5 {[%clk 0:00:35.4]} 43... f5 {[%clk 0:00:40.5]} 44. h6 {[%clk 0:00:34]} 44...
f4+ {[%clk 0:00:41.4]} 45. Kf2 {[%clk 0:00:34.4]} 45... Kf6 {[%clk 0:00:42.7]}
46. e5+ {[%clk 0:00:34.4]} 46... Kg6 {[%clk 0:00:43.3]} 47. e6 {[%clk
0:00:35.6]} 47... g3+ {[%clk 0:00:40.9]} 48. Kg2 {[%clk 0:00:35.3]} 48... Kh5
{[%clk 0:00:18.2]} 49. e7 {[%clk 0:00:35.5]} 49... Kg4 {[%clk 0:00:18.8]} 50.
e8=Q {[%clk 0:00:36.5]} 50... f3+ {[%clk 0:00:20.1]} 51. Kg1 {[%clk 0:00:37.7]}
51... g2 {[%clk 0:00:18]} 52. Kf2 {[%clk 0:00:31.7]} 52... Kf4 {[%clk 0:00:18]}
53. Qf7+ {[%clk 0:00:31.7]} 1-0

[Event "*** Titled Tuesday 3|2 Blitz"]
[Site "Chess.com"]
[Date "2016.09.06"]
[Round "3"]
[White "Iball95"]
[Black "SidArun"]
[Result "1-0"]
[WhiteElo "2478"]
[BlackElo "2002"]
[TimeControl "180+2"]
[EndTime "17:33:45 PDT"]
[Termination "Iball95 won by resignation"]

1. Nf3 {[%clk 0:03:01.9]} 1... e6 {[%clk 0:03:00.9]} 2. g3 {[%clk 0:03:02.6]}
2... g5 {[%clk 0:03:02.1]} 3. Bg2 {[%clk 0:02:59.7]} 3... Bg7 {[%clk 0:03:02.8]}
4. d4 {[%clk 0:02:59.1]} 4... h6 {[%clk 0:03:03.3]} 5. e4 {[%clk 0:02:57.8]}
5... c6 {[%clk 0:03:03.3]} 6. Nc3 {[%clk 0:02:57]} 6... d5 {[%clk 0:03:04.4]} 7.
h4 {[%clk 0:02:55.6]} 7... g4 {[%clk 0:03:04.7]} 8. Ne5 {[%clk 0:02:56.2]} 8...
h5 {[%clk 0:02:58.6]} 9. exd5 {[%clk 0:02:52.9]} 9... cxd5 {[%clk 0:02:59.3]}
10. Qd3 {[%clk 0:02:49]} 10... Nc6 {[%clk 0:02:51]} 11. Qb5 {[%clk 0:02:43.1]}
11... Qb6 {[%clk 0:02:45.1]} 12. Qxb6 {[%clk 0:02:28.5]} 12... axb6 {[%clk
0:02:45.2]} 13. Nb5 {[%clk 0:02:24.5]} 13... Bxe5 {[%clk 0:02:34.6]} 14. dxe5
{[%clk 0:02:24.5]} 14... Ke7 {[%clk 0:02:26.8]} 15. Bf4 {[%clk 0:02:21.5]} 15...
Bd7 {[%clk 0:02:23.7]} 16. c3 {[%clk 0:02:17.9]} 16... Nh6 {[%clk 0:02:20.9]}
17. Bg5+ {[%clk 0:02:09]} 17... Kf8 {[%clk 0:02:14.7]} 18. Bf6 {[%clk
0:02:09.6]} 18... Rh7 {[%clk 0:02:14.1]} 19. c4 {[%clk 0:01:34]} 19... Nb4
{[%clk 0:02:07.8]} 20. Kd2 {[%clk 0:01:32.9]} 20... dxc4 {[%clk 0:01:33.7]} 21.
Bxb7 {[%clk 0:01:14.8]} 21... Rb8 {[%clk 0:01:31.6]} 22. Nd6 {[%clk 0:01:15.6]}
22... Ng8 {[%clk 0:01:06.7]} 23. Bg5 {[%clk 0:01:15.3]} 23... Nd5 {[%clk
0:00:58.2]} 24. Bxd5 {[%clk 0:01:03.5]} 24... exd5 {[%clk 0:00:59.1]} 25. Kc3
{[%clk 0:01:05.2]} 25... Ne7 {[%clk 0:00:57.5]} 26. Rhd1 {[%clk 0:00:59.7]}
26... Be6 {[%clk 0:00:58.6]} 27. Bf6 {[%clk 0:00:49.9]} 27... Ng8 {[%clk
0:00:56.3]} 28. Bg5 {[%clk 0:00:51]} 28... Ne7 {[%clk 0:00:57.3]} 29. Nb5 {[%clk
0:00:47.3]} 29... Nc6 {[%clk 0:00:56.4]} 30. Bf6 {[%clk 0:00:48]} 30... Ke8
{[%clk 0:00:52.5]} 31. Nd4 {[%clk 0:00:46.7]} 31... Nxd4 {[%clk 0:00:52.9]} 32.
Kxd4 {[%clk 0:00:46.9]} 32... Kd7 {[%clk 0:00:53.8]} 33. a4 {[%clk 0:00:46.7]}
33... Rh6 {[%clk 0:00:51.8]} 34. b3 {[%clk 0:00:38.7]} 34... Rg6 {[%clk
0:00:48.6]} 35. bxc4 {[%clk 0:00:36.6]} 35... dxc4 {[%clk 0:00:48.6]} 36. Kc3+
{[%clk 0:00:37.8]} 36... Kc7 {[%clk 0:00:47.9]} 37. Be7 {[%clk 0:00:36]} 37...
Re8 {[%clk 0:00:43.5]} 38. Bf6 {[%clk 0:00:33.2]} 38... Rgg8 {[%clk 0:00:43.5]}
39. Rd6 {[%clk 0:00:34.8]} 39... Ra8 {[%clk 0:00:42]} 40. Rb1 {[%clk 0:00:30.5]}
40... Ra6 {[%clk 0:00:41.2]} 41. a5 {[%clk 0:00:26.5]} 41... Rxa5 {[%clk
0:00:31.2]} 42. Rbxb6 {[%clk 0:00:26.8]} 42... Rd5 {[%clk 0:00:18.5]} 43. Rdc6+
{[%clk 0:00:20.6]} 43... Kd7 {[%clk 0:00:19.4]} 44. Rxc4 {[%clk 0:00:22.1]}
44... Rc8 {[%clk 0:00:18.6]} 45. Rb7+ {[%clk 0:00:22.8]} 1-0

[Event "*** Titled Tuesday 3|2 Blitz"]
[Site "Chess.com"]
[Date "2016.09.06"]
[Round "3"]
[White "Bishops83"]
[Black "tigra"]
[Result "0-1"]
[WhiteElo "2255"]
[BlackElo "2438"]
[TimeControl "180+2"]
[EndTime "17:33:50 PDT"]
[Termination "tigra won by resignation"]

1. e4 {[%clk 0:03:01.9]} 1... c5 {[%clk 0:03:00.3]} 2. Nc3 {[%clk 0:02:57.5]}
2... Nc6 {[%clk 0:03:00.1]} 3. Bb5 {[%clk 0:02:56.2]} 3... b6 {[%clk 0:03:00.3]}
4. Bxc6 {[%clk 0:02:52.1]} 4... dxc6 {[%clk 0:03:02.2]} 5. f4 {[%clk 0:02:48.9]}
5... e5 {[%clk 0:02:54.1]} 6. fxe5 {[%clk 0:02:45.7]} 6... Qh4+ {[%clk
0:02:52.9]} 7. g3 {[%clk 0:02:45.2]} 7... Qd8 {[%clk 0:02:52.9]} 8. Nf3 {[%clk
0:02:44.6]} 8... Ne7 {[%clk 0:02:53.8]} 9. d3 {[%clk 0:02:39.2]} 9... Ng6 {[%clk
0:02:54.1]} 10. Bf4 {[%clk 0:02:08.8]} 10... Be7 {[%clk 0:02:15.1]} 11. Qd2
{[%clk 0:01:59]} 11... Bg4 {[%clk 0:02:11.5]} 12. Rf1 {[%clk 0:01:52.1]} 12...
O-O {[%clk 0:02:10.8]} 13. O-O-O {[%clk 0:01:52.9]} 13... Qc7 {[%clk 0:02:06.6]}
14. Kb1 {[%clk 0:01:50]} 14... Rad8 {[%clk 0:02:01]} 15. Ne2 {[%clk 0:01:50.7]}
15... Bxf3 {[%clk 0:01:57]} 16. Rxf3 {[%clk 0:01:52.6]} 16... Nxe5 {[%clk
0:01:58.4]} 17. Bxe5 {[%clk 0:01:44.8]} 17... Qxe5 {[%clk 0:01:58.5]} 18. Qf4
{[%clk 0:01:46.4]} 18... Qe6 {[%clk 0:01:56.7]} 19. Rdf1 {[%clk 0:01:41.2]}
19... Bf6 {[%clk 0:01:56.3]} 20. Qe3 {[%clk 0:01:33.3]} 20... Be5 {[%clk
0:01:54.6]} 21. h4 {[%clk 0:01:29.6]} 21... Rd7 {[%clk 0:01:46.3]} 22. Nf4
{[%clk 0:01:15.7]} 22... Qd6 {[%clk 0:01:41.1]} 23. g4 {[%clk 0:01:11.2]} 23...
c4 {[%clk 0:01:38.6]} 24. dxc4 {[%clk 0:00:59.3]} 24... Qd4 {[%clk 0:00:59.7]}
25. Qxd4 {[%clk 0:00:55.9]} 25... Bxd4 {[%clk 0:00:47.7]} 26. Rd3 {[%clk
0:00:51.6]} 26... Rfd8 {[%clk 0:00:45.3]} 27. Rfd1 {[%clk 0:00:52.4]} 27... Rd6
{[%clk 0:00:45.4]} 28. Ne2 {[%clk 0:00:46.3]} 28... Be5 {[%clk 0:00:45.6]} 29.
Rxd6 {[%clk 0:00:46.2]} 29... Rxd6 {[%clk 0:00:42.7]} 30. Rxd6 {[%clk
0:00:43.5]} 30... Bxd6 {[%clk 0:00:44.1]} 31. Nd4 {[%clk 0:00:45.4]} 31... c5
{[%clk 0:00:41.7]} 32. Nb5 {[%clk 0:00:46.5]} 32... Bb8 {[%clk 0:00:42.4]} 33.
Kc1 {[%clk 0:00:43.4]} 33... g6 {[%clk 0:00:42.6]} 34. Kd2 {[%clk 0:00:41.6]}
34... Kg7 {[%clk 0:00:32.3]} 35. Ke3 {[%clk 0:00:39.1]} 35... Kf6 {[%clk
0:00:31.2]} 36. Kf3 {[%clk 0:00:37]} 36... Ke6 {[%clk 0:00:29.8]} 37. b3 {[%clk
0:00:34.6]} 37... Ke5 {[%clk 0:00:27.2]} 38. Nc3 {[%clk 0:00:28.4]} 38... h6
{[%clk 0:00:27]} 39. Nd5 {[%clk 0:00:26]} 39... Ke6 {[%clk 0:00:25.4]} 40. c3
{[%clk 0:00:23.9]} 40... Be5 {[%clk 0:00:25]} 41. Ke2 {[%clk 0:00:20.9]} 41...
f5 {[%clk 0:00:24.5]} 42. exf5+ {[%clk 0:00:18.4]} 42... gxf5 {[%clk 0:00:26.4]}
43. Kf3 {[%clk 0:00:19.9]} 43... Bd6 {[%clk 0:00:14.8]} 44. Ne3 {[%clk
0:00:17.6]} 44... fxg4+ {[%clk 0:00:14.5]} 45. Kxg4 {[%clk 0:00:19.5]} 45... Be5
{[%clk 0:00:14]} 46. Kh5 {[%clk 0:00:17.4]} 46... Bxc3 {[%clk 0:00:14.3]} 47.
Kxh6 {[%clk 0:00:18]} 47... Bd2 {[%clk 0:00:15.3]} 0-1

[Event "*** Titled Tuesday 3|2 Blitz"]
[Site "Chess.com"]
[Date "2016.09.06"]
[Round "3"]
[White "Goala"]
[Black "IamSchrodingersCat"]
[Result "0-1"]
[WhiteElo "2157"]
[BlackElo "2259"]
[TimeControl "180+2"]
[EndTime "17:34:30 PDT"]
[Termination "IamSchrodingersCat won by resignation"]

1. d4 {[%clk 0:03:01.9]} 1... Nf6 {[%clk 0:02:59]} 2. c4 {[%clk 0:03:02.5]} 2...
e5 {[%clk 0:02:59.6]} 3. dxe5 {[%clk 0:03:01.9]} 3... Ng4 {[%clk 0:03:00.6]} 4.
Bf4 {[%clk 0:03:03.1]} 4... g5 {[%clk 0:03:01.1]} 5. Bg3 {[%clk 0:03:03.5]} 5...
Bg7 {[%clk 0:03:02]} 6. Nf3 {[%clk 0:03:02.5]} 6... Nc6 {[%clk 0:03:02.9]} 7. h4
{[%clk 0:03:02.1]} 7... Ngxe5 {[%clk 0:03:03.3]} 8. Nxe5 {[%clk 0:03:02.3]} 8...
Nxe5 {[%clk 0:03:05.2]} 9. e3 {[%clk 0:03:03.7]} 9... h6 {[%clk 0:02:42.5]} 10.
Nc3 {[%clk 0:02:58.9]} 10... d6 {[%clk 0:02:39.9]} 11. Be2 {[%clk 0:02:52.2]}
11... Be6 {[%clk 0:02:36]} 12. Rc1 {[%clk 0:02:48.4]} 12... O-O {[%clk
0:02:27.1]} 13. hxg5 {[%clk 0:02:46.7]} 13... hxg5 {[%clk 0:02:29]} 14. Nd5
{[%clk 0:02:42.7]} 14... c6 {[%clk 0:02:21.5]} 15. Qc2 {[%clk 0:02:10.2]} 15...
f5 {[%clk 0:02:19.7]} 16. Nc3 {[%clk 0:02:03.6]} 16... Nxc4 {[%clk 0:01:48.6]}
17. Bxc4 {[%clk 0:01:55.1]} 17... Bxc4 {[%clk 0:01:50.5]} 18. Ne4 {[%clk
0:01:56.3]} 18... Qa5+ {[%clk 0:01:27.3]} 19. Nd2 {[%clk 0:01:42]} 19... Be6
{[%clk 0:01:21]} 20. Kf1 {[%clk 0:01:18.4]} 20... Qxa2 {[%clk 0:01:17.4]} 21.
Bxd6 {[%clk 0:01:06]} 21... Rf7 {[%clk 0:01:10.3]} 22. Ba3 {[%clk 0:01:01.5]}
22... Qd5 {[%clk 0:00:50.9]} 23. Rh5 {[%clk 0:00:52.8]} 23... Rd8 {[%clk
0:00:47.2]} 24. Nf3 {[%clk 0:00:48.7]} 24... g4 {[%clk 0:00:35.9]} 25. Nh4
{[%clk 0:00:48.6]} 25... Qe4 {[%clk 0:00:26.3]} 26. Qxe4 {[%clk 0:00:29.2]}
26... fxe4 {[%clk 0:00:28.2]} 27. Ng6 {[%clk 0:00:31.1]} 27... Rfd7 {[%clk
0:00:18]} 28. Ke1 {[%clk 0:00:21.6]} 28... Bf7 {[%clk 0:00:17.8]} 29. Rg5 {[%clk
0:00:21.1]} 29... Be6 {[%clk 0:00:13.5]} 30. Nf4 {[%clk 0:00:20.3]} 30... Re8
{[%clk 0:00:12.5]} 31. Nxe6 {[%clk 0:00:21.1]} 31... Rxe6 {[%clk 0:00:14.4]} 32.
Rxg4 {[%clk 0:00:23]} 32... Kf7 {[%clk 0:00:15.9]} 33. Rc4 {[%clk 0:00:22.4]}
33... b5 {[%clk 0:00:13.2]} 34. Rcxe4 {[%clk 0:00:22.7]} 34... Rxe4 {[%clk
0:00:15.1]} 35. Rxe4 {[%clk 0:00:24.1]} 35... a5 {[%clk 0:00:16.7]} 36. b3
{[%clk 0:00:16.8]} 36... Bc3+ {[%clk 0:00:12.3]} 37. Ke2 {[%clk 0:00:17.3]}
37... Rd2+ {[%clk 0:00:12]} 38. Kf3 {[%clk 0:00:18.8]} 38... Ra2 {[%clk
0:00:11.6]} 39. Bc1 {[%clk 0:00:18.5]} 39... Be1 {[%clk 0:00:12.2]} 40. Rf4+
{[%clk 0:00:18]} 40... Ke6 {[%clk 0:00:13.6]} 41. Kg3 {[%clk 0:00:19]} 41... Rc2
{[%clk 0:00:11.6]} 42. Ba3 {[%clk 0:00:18.8]} 42... b4 {[%clk 0:00:13]} 43. Bxb4
{[%clk 0:00:18.9]} 43... axb4 {[%clk 0:00:13.8]} 44. Rf8 {[%clk 0:00:19.8]}
44... c5 {[%clk 0:00:14.2]} 45. e4 {[%clk 0:00:20.9]} 45... Rc3+ {[%clk
0:00:13.7]} 46. Kg4 {[%clk 0:00:18.1]} 46... Rxb3 {[%clk 0:00:15.6]} 47. f4
{[%clk 0:00:19.4]} 47... Rg3+ {[%clk 0:00:15.5]} 48. Kh5 {[%clk 0:00:18.7]}
48... Rxg2 {[%clk 0:00:16.8]} 49. f5+ {[%clk 0:00:19.5]} 49... Ke5 {[%clk
0:00:17.5]} 50. Re8+ {[%clk 0:00:21]} 50... Kd4 {[%clk 0:00:12.3]} 51. f6 {[%clk
0:00:20.3]} 51... Rf2 {[%clk 0:00:12.4]} 52. e5 {[%clk 0:00:21.6]} 52... b3
{[%clk 0:00:12.3]} 53. Kg6 {[%clk 0:00:20.4]} 53... b2 {[%clk 0:00:13.4]} 54.
Rb8 {[%clk 0:00:22]} 54... Bb4 {[%clk 0:00:14.5]} 55. Rd8+ {[%clk 0:00:21.8]}
55... Kxe5 {[%clk 0:00:14.8]} 56. Rd1 {[%clk 0:00:21.7]} 56... Rxf6+ {[%clk
0:00:15]} 57. Kg5 {[%clk 0:00:23.1]} 57... Rf2 {[%clk 0:00:16.5]} 58. Rb1 {[%clk
0:00:23]} 58... Rc2 {[%clk 0:00:17.3]} 59. Rxb2 {[%clk 0:00:24.9]} 59... Rxb2
{[%clk 0:00:18.2]} 0-1

[Event "*** Titled Tuesday 3|2 Blitz"]
[Site "Chess.com"]
[Date "2016.09.06"]
[Round "3"]
[White "WinnieTPooh"]
[Black "theprosecution1"]
[Result "0-1"]
[WhiteElo "1849"]
[BlackElo "2453"]
[TimeControl "180+2"]
[EndTime "17:34:49 PDT"]
[Termination "theprosecution1 won by resignation"]

1. d4 {[%clk 0:02:58.9]} 1... Nf6 {[%clk 0:03:00.9]} 2. c4 {[%clk 0:03:00.2]}
2... e6 {[%clk 0:02:57.7]} 3. Nf3 {[%clk 0:03:00.9]} 3... b6 {[%clk 0:02:53.7]}
4. g3 {[%clk 0:02:44.1]} 4... Ba6 {[%clk 0:02:53.8]} 5. Qc2 {[%clk 0:02:40.9]}
5... Bb7 {[%clk 0:02:52.5]} 6. Bg2 {[%clk 0:02:36.3]} 6... c5 {[%clk 0:02:53]}
7. d5 {[%clk 0:02:26.6]} 7... exd5 {[%clk 0:02:54]} 8. Nh4 {[%clk 0:02:27.6]}
8... g6 {[%clk 0:02:42.6]} 9. Nc3 {[%clk 0:02:25.1]} 9... Bg7 {[%clk 0:02:12.6]}
10. Bf4 {[%clk 0:01:51.3]} 10... O-O {[%clk 0:01:56.2]} 11. Bd6 {[%clk
0:01:51.4]} 11... Re8 {[%clk 0:01:56.5]} 12. cxd5 {[%clk 0:01:52.3]} 12... Na6
{[%clk 0:01:53.1]} 13. O-O {[%clk 0:01:51.5]} 13... Nc7 {[%clk 0:01:41.7]} 14.
e4 {[%clk 0:01:47]} 14... Ng4 {[%clk 0:01:29.3]} 15. h3 {[%clk 0:01:40]} 15...
Ne5 {[%clk 0:01:28.9]} 16. Bxc7 {[%clk 0:01:22.5]} 16... Qxc7 {[%clk 0:01:28.1]}
17. Nb5 {[%clk 0:01:23.4]} 17... Qb8 {[%clk 0:00:43.7]} 18. f4 {[%clk 0:01:23]}
18... g5 {[%clk 0:00:25.9]} 19. fxg5 {[%clk 0:01:09.6]} 19... a6 {[%clk
0:00:27.1]} 20. Nc3 {[%clk 0:01:05.3]} 20... Nc4 {[%clk 0:00:28.3]} 21. Rf3
{[%clk 0:00:46.2]} 21... Ne5 {[%clk 0:00:27.1]} 22. Rf4 {[%clk 0:00:36.9]} 22...
Ng6 {[%clk 0:00:28.2]} 23. Nxg6 {[%clk 0:00:35.2]} 23... hxg6 {[%clk 0:00:30.1]}
24. Raf1 {[%clk 0:00:33.7]} 24... Re7 {[%clk 0:00:31.6]} 25. Kh2 {[%clk
0:00:30.3]} 25... Be5 {[%clk 0:00:32.8]} 26. R4f3 {[%clk 0:00:30.8]} 26... Kg7
{[%clk 0:00:34]} 27. Qf2 {[%clk 0:00:31.4]} 27... Qg8 {[%clk 0:00:33.6]} 28. Nd1
{[%clk 0:00:32]} 28... Rae8 {[%clk 0:00:33.1]} 29. Ne3 {[%clk 0:00:32.9]} 29...
Bd4 {[%clk 0:00:31.6]} 30. Rf4 {[%clk 0:00:33.1]} 30... d6 {[%clk 0:00:32.4]}
31. Qf3 {[%clk 0:00:33]} 31... Bc8 {[%clk 0:00:33.4]} 32. Ng4 {[%clk 0:00:33.9]}
32... Bxg4 {[%clk 0:00:34.6]} 33. Qxg4 {[%clk 0:00:34.6]} 33... Qh8 {[%clk
0:00:34.8]} 34. h4 {[%clk 0:00:35.1]} 34... Be5 {[%clk 0:00:36.3]} 35. R4f3
{[%clk 0:00:35.6]} 35... Kg8 {[%clk 0:00:35.2]} 36. Bh3 {[%clk 0:00:35.5]} 36...
Qh7 {[%clk 0:00:36]} 37. R1f2 {[%clk 0:00:36.3]} 37... b5 {[%clk 0:00:37.5]} 38.
b3 {[%clk 0:00:28.8]} 38... c4 {[%clk 0:00:38]} 39. Bf1 {[%clk 0:00:27.9]} 39...
c3 {[%clk 0:00:38.3]} 40. Bd3 {[%clk 0:00:27.1]} 40... b4 {[%clk 0:00:38.4]} 41.
Qh3 {[%clk 0:00:26.2]} 41... a5 {[%clk 0:00:36.5]} 42. Kg2 {[%clk 0:00:27.2]}
42... Ra8 {[%clk 0:00:37]} 43. g4 {[%clk 0:00:25.3]} 43... Qg7 {[%clk
0:00:32.9]} 44. h5 {[%clk 0:00:25.1]} 44... gxh5 {[%clk 0:00:34.8]} 45. Qxh5
{[%clk 0:00:24.6]} 45... Qg6 {[%clk 0:00:32.1]} 46. Rf5 {[%clk 0:00:18.2]} 46...
a4 {[%clk 0:00:28]} 47. Kf3 {[%clk 0:00:13.6]} 47... axb3 {[%clk 0:00:27.4]} 48.
axb3 {[%clk 0:00:15.5]} 48... Qxh5 {[%clk 0:00:19.7]} 49. gxh5 {[%clk
0:00:16.6]} 49... Ra3 {[%clk 0:00:21.1]} 50. Bc4 {[%clk 0:00:12.4]} 50... Rc7
{[%clk 0:00:22.3]} 51. Kg4 {[%clk 0:00:11.5]} 51... Rxc4 {[%clk 0:00:22.8]} 52.
bxc4 {[%clk 0:00:12.2]} 52... Ra7 {[%clk 0:00:22.1]} 53. g6 {[%clk 0:00:12.1]}
53... fxg6 {[%clk 0:00:24]} 54. hxg6 {[%clk 0:00:11.9]} 54... b3 {[%clk
0:00:25.5]} 55. Rf8+ {[%clk 0:00:11.1]} 55... Kg7 {[%clk 0:00:27]} 56. R8f7+
{[%clk 0:00:12.3]} 56... Rxf7 {[%clk 0:00:28]} 57. gxf7 {[%clk 0:00:14.2]} 57...
Kf8 {[%clk 0:00:29.4]} 58. Kf5 {[%clk 0:00:10.9]} 58... c2 {[%clk 0:00:28.2]}
59. Rf1 {[%clk 0:00:06.3]} 59... b2 {[%clk 0:00:28.2]} 60. Ke6 {[%clk
0:00:06.3]} 60... c1=Q {[%clk 0:00:28]} 0-1